bitfinex/quotes_ETHUSD_20250616
["timestamp","ask_amount","ask_price","bid_price","bid_amount"]
[1750051942361,22.804,2615.9,2614.6,7.30092648]
[1750051942362,6.98657088,2615.5,2615.3,3.65460268]
[1750051942663,11.029,2615.4,2615.0,3.65460268]
[1750051943229,11.029,2615.4,2614.9,3.65460268]
[1750051943430,8.2343157,2615.4,2615.0,3.65460268]
[1750051943630,8.2343157,2615.4,2615.1,3.65460268]
[1750051944378,8.2343157,2615.4,2615.2,0.88027687]
[1750051944552,5.43839496,2615.4,2615.3,0.88027687]
[1750051944864,5.06498031,2615.4,2615.3,0.88027687]
[1750051945171,5.57147834,2615.4,2615.3,0.88027687]
[1750051945547,2.12448106,2615.4,2615.3,0.88027687]
[1750051946154,24.92848106,2615.4,2614.9,3.65460268]
[1750051946353,10.0,2614.9,2614.2,3.65460268]
[1750051946541,10.0,2614.9,2614.0,3.65460268]
[1750051946743,1.69865709,2614.8,2614.1,0.55165887]
[1750051946956,1.69675545,2614.8,2614.2,0.34478382]
[1750051947263,1.69675545,2614.8,2614.0,3.65460268]
[1750051947426,1.69675545,2614.8,2614.1,0.34479119]
[1750051947627,1.69675545,2614.8,2614.2,0.55121445]
[1750051947855,0.7524,2616.7,2614.3,0.34446724]
[1750051948174,6.98657088,2616.3,2614.4,0.20646223]
[1750051948378,11.029,2616.6,2614.9,0.7603]
[1750051948674,11.029,2616.6,2615.0,0.20641515]
[1750051948882,11.029,2616.6,2615.1,0.20641732]
[1750051949026,18.01557088,2616.6,2614.9,4.41490268]
[1750051949369,22.254,2616.5,2615.0,4.03037396]
[1750051949574,12.254,2616.5,2614.9,0.7603]
[1750051949863,15.28095709,2616.4,2615.0,0.55127434]
[1750051950027,3.02695709,2616.4,2615.1,0.58949909]
[1750051950224,12.253,2616.3,2615.2,0.55124564]
[1750051950430,12.00412306,2616.3,2615.3,0.5515947]
[1750051950626,12.253,2616.3,2615.4,0.20684804]
[1750051950953,1.52799571,2616.2,2615.5,0.89626603]
[1750051951141,1.52799571,2616.2,2615.6,0.34471208]
[1750051951343,0.1904,2615.8,2615.3,0.1904]
[1750051951561,0.1904,2615.8,2615.4,0.20649174]
[1750051951764,0.1904,2615.8,2614.9,3.70455433]
[1750051951765,10.0,2616.3,2615.5,0.55064254]
[1750051952065,22.253,2616.3,2615.6,0.34420823]
[1750051952274,10.0,2616.3,2615.0,4.0535081]
[1750051952565,1.30269571,2616.2,2615.1,0.68733398]
[1750051952765,1.30269571,2616.2,2615.2,0.54983767]
[1750051953065,1.30269571,2616.2,2615.3,0.89347159]
[1750051953271,1.30269571,2616.2,2615.4,0.8934663]
[1750051953478,1.30269571,2616.2,2614.8,2.94425433]
[1750051953701,11.029,2616.6,2614.9,4.76451968]
[1750051953852,21.029,2616.6,2615.2,3.82372954]
[1750051954191,10.0,2616.5,2615.3,0.20814089]
[1750051954342,10.0,2616.5,2615.4,0.55507532]
[1750051954546,10.0,2616.5,2614.9,3.82418263]
[1750051954753,10.0,2616.5,2615.0,4.41730498]
[1750051954754,2.1029,2616.4,2615.0,4.41730498]
[1750051955043,2.1029,2616.4,2615.1,4.37901656]
[1750051955265,2.1029,2616.4,2615.2,4.4170925]
[1750051955457,2.1029,2616.4,2615.3,0.55507675]
[1750051955659,2.1029,2616.4,2615.4,4.20882543]
[1750051955860,2.1029,2616.4,2615.5,0.55538214]
[1750051955861,1.21029,2616.3,2615.5,0.55538214]
[1750051956079,1.21029,2616.3,2615.6,0.55532258]
[1750051956377,2.1029,2616.4,2615.7,0.55532067]
[1750051956674,2.1029,2616.4,2615.8,0.20825975]
[1750051956855,2.1029,2616.4,2615.4,3.86167758]
[1750051957182,2.1029,2616.4,2615.4,0.03822934]
[1750051957378,2.1029,2616.4,2615.5,0.55538022]
[1750051957580,0.21029,2616.3,2615.6,0.55538241]
[1750051957780,11.41154796,2616.6,2615.7,0.20826311]
[1750051958076,11.41154796,2616.6,2615.8,0.34710839]
[1750051958255,11.41154796,2616.6,2615.9,0.55536676]
[1750051958449,11.41154796,2616.6,2616.0,0.20826703]
[1750051958450,10.0,2616.5,2616.0,0.20826703]
[1750051958652,10.55,2616.3,2615.5,0.55537676]
[1750051958857,0.55,2615.7,2615.6,0.34739574]
[1750051959042,12.801,2615.7,2614.1,3.82526776]
[1750051959242,10.0,2615.5,2614.2,0.92325032]
[1750051959482,12.25,2615.9,2614.3,0.88500328]
[1750051959677,1.225,2615.8,2614.6,3.8246718]
[1750051959978,1.225,2615.8,2614.7,0.92324255]
[1750051960164,10.0,2616.0,2614.8,0.88500328]
[1750051960366,10.0,2616.0,2614.9,0.88500328]
[1750051960573,11.025,2615.9,2615.0,0.92324254]
[1750051960773,11.025,2615.9,2615.1,0.88500328]
[1750051961080,11.025,2615.9,2615.2,0.88500328]
[1750051961290,2.3275,2615.8,2615.3,0.88500328]
[1750051961584,2.3275,2615.8,2615.4,0.88563521]
[1750051961783,2.3275,2615.8,2615.0,0.03823926]
[1750051961784,11.025,2615.9,2614.9,0.03823606]
[1750051961949,0.1904,2615.4,2615.0,1.07683143]
[1750051962152,0.1904,2615.4,2615.1,0.88563143]
[1750051962351,0.8241,2616.1,2615.2,0.9238679]
[1750051962652,0.1904,2615.9,2615.4,0.1904]
[1750051962876,0.1904,2615.9,2615.5,0.88563143]
[1750051963079,0.1904,2615.9,2615.6,0.88563143]
[1750051963384,7.37320899,2616.9,2615.8,0.1904]
[1750051963587,11.8442309,2616.8,2615.9,0.88563143]
[1750051963783,0.1904,2615.9,2615.4,0.1904]
[1750051963952,0.1904,2615.9,2615.5,0.88551396]
[1750051964146,0.1904,2615.9,2615.6,0.88551396]
[1750051964351,0.1904,2615.9,2615.7,0.88551396]
[1750051964551,0.1904,2615.9,2615.8,0.88551396]
[1750051965648,0.1904,2616.3,2615.8,1.07591396]
[1750051965865,0.1904,2616.3,2615.9,0.88551396]
[1750051966076,0.1904,2616.3,2615.8,0.1904]
[1750051966274,0.1904,2616.3,2615.9,0.88584675]
[1750051966445,0.1904,2616.3,2615.8,0.1904]
[1750051967246,0.38744249,2616.9,2615.1,2.21407234]
[1750051967452,0.1904,2616.0,2615.6,0.1904]
[1750051968281,0.1904,2616.2,2615.7,0.1904]
[1750051968804,10.0,2617.1,2615.7,0.1904]
[1750051968805,22.227,2617.1,2615.7,3.8230299]
[1750051968975,0.1904,2616.3,2615.9,0.1904]
[1750051969176,0.37744444,2616.9,2614.9,0.7991]
[1750051969403,0.1904,2616.1,2615.6,0.1904]
[1750051969705,0.1904,2616.1,2615.7,0.03822631]
[1750051970908,0.1904,2616.1,2615.7,3.86127371]
[1750051971114,0.7747,2617.7,2615.9,6.98657088]
[1750051971115,0.005,2617.7,2615.9,6.98657088]
[1750051971405,0.005,2617.7,2616.4,3.82204399]
[1750051971578,0.005,2617.7,2616.5,3.8218957]
[1750051971917,0.005,2617.7,2617.1,3.82093707]
[1750051972125,0.005,2617.7,2617.2,0.78432411]
[1750051972126,0.1954,2617.7,2617.2,0.78432411]
[1750051972270,0.005,2617.7,2617.3,0.55558896]
[1750051972471,0.005,2617.7,2617.6,0.1904]
[1750051972680,0.005,2617.7,2617.6,4.56612639]
[1750051973009,0.005,2617.7,2617.6,6.20059243]
[1750051973181,0.005,2617.7,2617.6,4.8411817]
[1750051973592,0.005,2617.7,2617.6,5.35793782]
[1750051973899,0.005,2617.7,2617.6,0.55516774]
[1750051974214,0.005,2617.7,2617.6,0.34728289]
[1750051974379,0.005,2617.7,2617.1,0.03820519]
[1750051974572,0.005,2617.7,2617.0,0.7923]
[1750051974767,0.005,2617.7,2616.8,3.82133912]
[1750051974996,0.005,2617.7,2616.9,3.82126357]
[1750051975191,0.005,2617.7,2616.7,3.82159673]
[1750051975410,0.005,2617.7,2616.5,3.82177163]
[1750051975582,0.005,2617.7,2616.6,0.20840425]
[1750051975786,0.005,2617.7,2616.3,0.7723]
[1750051975994,0.005,2617.7,2616.5,3.82179737]
[1750051976198,0.005,2617.7,2616.6,3.85996407]
[1750051976411,0.005,2617.7,2616.5,3.82188607]
[1750051976575,0.005,2617.7,2616.6,3.82174637]
[1750051976771,0.005,2617.7,2616.7,0.20845355]
[1750051976967,0.005,2617.7,2616.9,3.82120804]
[1750051977277,0.005,2617.7,2617.0,0.24663095]
[1750051977497,0.005,2617.7,2617.1,0.20842522]
[1750051977696,0.005,2617.7,2616.8,0.03820683]
[1750051978010,0.7888,2617.6,2616.3,0.7723]
[1750051978373,0.7888,2617.6,2616.0,3.82251284]
[1750051978576,0.7888,2617.6,2616.0,4.14170923]
[1750051978776,0.7888,2617.6,2616.1,4.1415661]
[1750051979097,0.7888,2617.6,2616.2,0.56583748]
[1750051979308,0.005,2617.7,2616.4,3.82204555]
[1750051979489,0.005,2617.7,2616.9,3.82127206]
[1750051979687,0.005,2617.7,2617.0,0.03820697]
[1750051979893,0.005,2617.7,2616.1,10.41415661]
[1750051980184,0.005,2617.7,2616.3,3.82209455]
[1750051980378,1.70415709,2617.7,2615.8,0.7568]
[1750051980581,0.005,2617.7,2615.9,3.86099068]
[1750051980782,0.005,2617.7,2617.6,3.82029339]
[1750051981023,0.005,2617.7,2617.6,10.84505016]
[1750051981216,0.771,2619.8,2617.6,1.97679167]
[1750051981415,0.771,2619.8,2617.8,10.55]
[1750051981710,0.771,2619.8,2618.2,0.7785]
[1750051982140,10.0,2619.6,2617.6,3.82028153]
[1750051982294,10.0,2619.4,2617.5,0.7785]
[1750051982474,0.771,2619.8,2617.6,0.55]
[1750051982679,0.771,2619.8,2618.0,10.0]
[1750051982883,0.8021,2620.9,2619.2,0.8193]
[1750051983081,0.8021,2620.9,2619.3,3.81772372]
[1750051983337,0.8021,2620.9,2618.5,8.4527776]
[1750051983338,30.0,2620.8,2618.6,0.8193]
[1750051983494,0.8021,2620.9,2618.7,0.0381777]
[1750051983694,0.1904,2620.2,2618.6,0.8193]
[1750051983882,0.8021,2620.9,2618.7,4.63739438]
[1750051984223,0.8021,2620.9,2618.7,0.78058709]
[1750051984515,10.0,2620.3,2618.6,0.8193]
[1750051984715,0.8182,2620.2,2618.7,0.03817736]
[1750051984920,0.1904,2619.7,2619.2,0.1904]
[1750051985214,10.0,2620.0,2618.6,0.8193]
[1750051985421,0.1904,2619.5,2619.0,0.1904]
[1750051986179,7.80477088,2619.4,2617.4,0.7989]
[1750051986379,30.0,2619.2,2617.4,0.7989]
[1750051986620,30.0,2619.2,2617.5,0.03819111]
[1750051986621,10.55,2619.1,2617.5,0.03819111]
[1750051986925,10.55,2619.1,2616.3,0.38154062]
[1750051986926,6.98657088,2617.8,2615.8,0.8122]
[1750051987093,11.71365709,2617.7,2615.9,0.03821275]
[1750051987328,11.71365709,2617.7,2615.8,0.8122]
[1750051987494,11.90405709,2617.7,2617.2,0.1904]
[1750051987695,11.71365709,2617.7,2615.9,3.8227761]
[1750051987898,0.1904,2617.2,2616.7,0.1904]
[1750051988087,0.1904,2617.5,2617.0,0.1904]
[1750051988936,11.015,2617.7,2617.1,0.03820621]
[1750051989098,12.18636571,2617.7,2617.0,0.1904]
[1750051989300,1.17136571,2617.7,2617.0,0.1904]
[1750051989487,0.8185,2618.2,2617.0,0.1904]
[1750051989686,0.8185,2618.2,2616.9,0.7901]
[1750051989998,0.8185,2618.2,2617.0,0.03820014]
[1750051991229,0.8185,2618.2,2616.8,3.82145512]
[1750051991591,0.8185,2618.2,2616.7,3.82157604]
[1750051991790,0.8185,2618.2,2616.8,3.8214512]
[1750051991991,0.8185,2618.2,2616.4,0.7901]
[1750051991992,10.8185,2618.2,2616.4,4.61210751]
[1750051992327,1.78050709,2618.1,2616.5,3.82189481]
[1750051992525,1.78050709,2618.1,2616.6,0.03820693]
[1750051992688,1.78050709,2618.1,2616.5,3.82189481]
[1750051993528,1.78050709,2618.1,2616.4,0.7901]
[1750051993718,1.78050709,2618.1,2616.4,4.6120349]
[1750051993921,1.25990071,2618.0,2616.4,4.61208265]
[1750051994236,1.25990071,2618.0,2615.9,0.7664]
[1750051994439,11.25990071,2618.0,2615.9,0.7664]
[1750051994735,10.0,2617.8,2616.4,3.82200224]
[1750051994909,10.0,2617.8,2616.3,3.82219164]
[1750051995097,1.78050709,2618.1,2616.6,3.82175342]
[1750051995298,0.8185,2618.2,2616.7,1.42859102]
[1750051995522,0.8185,2618.2,2617.4,3.82050326]
[1750051995738,0.8185,2618.2,2617.0,3.82116927]
[1750051995939,11.791,2618.8,2617.7,3.82006899]
[1750051996099,1.1796,2618.7,2617.7,3.82006899]
[1750051996299,1.1796,2618.7,2616.9,1.09827196]
[1750051996501,1.1796,2618.7,2617.8,3.8199248]
[1750051996738,11.791,2618.8,2617.7,3.82014745]
[1750051996896,0.826,2619.4,2618.7,3.81866996]
[1750051997097,0.826,2619.4,2618.8,3.85672282]
[1750051997301,0.826,2619.4,2618.8,0.03817998]
[1750051997527,11.017,2620.0,2618.8,3.85672282]
[1750051997725,0.8312,2619.9,2618.8,0.03817998]
[1750051998003,0.8312,2619.9,2617.8,0.7959]
[1750051998232,0.8312,2619.9,2618.8,3.81854284]
[1750051998447,10.8312,2619.9,2618.8,3.81854284]
[1750051998650,10.8312,2619.9,2618.8,3.85672171]
[1750051998868,0.1904,2619.6,2618.8,4.00894284]
[1750051999004,1.0216,2619.9,2618.8,4.0471185]
[1750051999204,1.0216,2619.9,2618.8,0.22857566]
[1750051999520,1.0216,2619.9,2618.8,4.0471185]
[1750051999702,0.8312,2619.9,2618.8,4.83369871]
[1750051999903,0.8312,2619.9,2618.8,6.50132413]
[1750052000105,0.8312,2619.9,2618.8,4.42125949]
[1750052000339,0.8312,2619.9,2618.8,0.39655273]
[1750052000742,10.8312,2619.9,2618.8,0.39655273]
[1750052001042,10.8312,2619.9,2618.8,0.20615273]
[1750052001555,0.8312,2619.9,2618.8,0.20615273]
[1750052001899,10.8312,2619.9,2618.8,0.20615273]
[1750052002199,0.7902,2618.9,2618.8,0.20615273]
[1750052003439,10.7902,2618.9,2618.8,0.20615273]
[1750052003617,11.90790274,2618.9,2618.8,0.20615273]
[1750052004726,0.005,2618.9,2618.8,0.20615273]
[1750052006205,0.005,2618.9,2618.8,4.02469557]
[1750052006333,0.005,2618.9,2618.8,0.20615273]
[1750052009904,0.1954,2618.9,2618.8,0.20615273]
[1750052013895,0.005,2618.9,2618.8,0.20615273]
[1750052019598,21.7757,2618.9,2618.8,0.20615273]
[1750052019794,13.95327,2618.9,2618.8,0.20615273]
[1750052020682,53.95327,2618.9,2618.8,0.20615273]
[1750052020994,30.0,2618.1,2616.1,0.8071]
[1750052021155,10.812,2618.0,2616.2,1.24129051]
[1750052021354,1.0812,2617.9,2616.3,1.20306563]
[1750052021560,1.0812,2617.9,2616.4,0.31905771]
[1750052021760,0.8314,2617.7,2616.5,0.03821215]
[1750052022002,10.0,2617.5,2616.5,0.31904552]
[1750052022153,0.8314,2617.4,2616.5,0.31904552]
[1750052022359,1.08314,2617.3,2616.5,0.31904552]
[1750052023371,0.7516,2617.2,2616.5,0.31904552]
[1750052023798,0.1904,2616.8,2616.5,0.31904552]
[1750052023956,0.1904,2617.0,2616.5,0.50944552]
[1750052024932,0.7516,2617.2,2615.2,0.793]
[1750052025202,0.1904,2616.8,2616.3,0.1904]
[1750052025558,0.1904,2616.8,2615.6,3.82320458]
[1750052025900,0.1904,2616.8,2615.7,0.03822409]
[1750052026059,0.1904,2616.8,2615.9,3.82264423]
[1750052026261,0.1904,2616.8,2616.0,3.86076068]
[1750052026564,10.0,2617.1,2615.4,3.82338801]
[1750052026762,1.77381709,2617.0,2615.4,3.82338801]
[1750052027061,0.8297,2616.9,2614.7,1.90917196]
[1750052027270,10.0,2616.5,2614.8,0.03822378]
[1750052027494,20.672,2616.5,2615.1,3.82392497]
[1750052027712,0.21436037,2616.4,2615.1,3.82392497]
[1750052027919,11.018,2616.3,2615.2,0.03823037]
[1750052028062,11.018,2616.3,2614.7,1.13016515]
[1750052028063,11.018,2616.3,2615.1,3.82393308]
[1750052028258,11.018,2616.3,2615.2,3.82378305]
[1750052028672,11.018,2616.3,2615.1,3.82391133]
[1750052028877,11.018,2616.3,2614.9,3.82419097]
[1750052028878,0.806,2616.2,2614.7,1.13016515]
[1750052029118,2.1166636,2616.2,2615.2,3.82370585]
[1750052029316,2.1166636,2616.2,2615.3,0.03823256]
[1750052029620,2.1166636,2616.2,2615.3,3.82356161]
[1750052029798,2.1166636,2616.2,2615.4,3.82342436]
[1750052030920,2.1166636,2616.2,2615.3,3.82360135]
[1750052031093,1.31346636,2616.1,2615.3,3.82360135]
[1750052031289,0.806,2616.2,2615.2,3.86200486]
[1750052031490,0.806,2616.2,2615.3,3.82352953]
[1750052031706,0.806,2616.2,2615.4,3.86173346]
[1750052031879,0.806,2616.2,2615.4,0.03822936]
[1750052032086,0.806,2616.2,2615.3,3.8235722]
[1750052032284,0.806,2616.2,2615.2,3.82372909]
[1750052032514,1.9884,2616.2,2615.2,3.82372909]
[1750052032717,1.9884,2616.2,2614.7,0.8109]
[1750052033022,11.9884,2616.2,2614.2,3.82514219]
[1750052033338,0.21538431,2616.1,2614.2,0.31932622]
[1750052033539,11.9884,2616.2,2614.7,3.82451389]
[1750052033838,2.30064,2616.1,2615.0,3.82400343]
[1750052033986,2.30064,2616.1,2615.1,0.0382355]
[1750052034707,2.30064,2616.1,2614.9,3.82417218]
[1750052035224,2.30064,2616.1,2614.5,0.0382348]
[1750052035606,0.1904,2616.0,2615.6,0.1904]
[1750052035811,2.30064,2616.1,2615.1,3.82392429]
[1750052036126,2.30064,2616.1,2615.7,0.1904]
[1750052036301,0.9964,2616.2,2615.7,0.1904]
[1750052037027,11.018,2616.3,2616.0,0.1904]
[1750052037382,0.7996,2616.6,2616.0,3.8225235]
[1750052037589,0.7996,2616.6,2616.2,0.1904]
[1750052039110,0.8059,2617.5,2616.3,3.82219164]
[1750052039309,0.8059,2617.5,2616.2,0.22862106]
[1750052039526,0.8059,2617.5,2616.2,0.03822106]
[1750052039821,0.8059,2617.5,2616.3,3.8221898]
[1750052040003,0.8059,2617.5,2616.2,0.03822106]
[1750052040487,0.8059,2617.5,2616.3,3.82206422]
[1750052040687,1.08059,2617.4,2616.3,3.82206422]
[1750052041202,1.08059,2617.4,2616.2,3.86049501]
[1750052041601,10.0,2617.3,2616.0,3.82258713]
[1750052041930,6.54733139,2617.4,2614.5,0.8124]
[1750052041931,5.46674139,2616.2,2614.5,0.8124]
[1750052042135,5.46674139,2615.4,2613.9,0.8124]
[1750052042319,10.7723,2615.3,2614.0,0.31935065]
[1750052043096,30.0,2615.2,2613.8,0.018312]
[1750052043291,30.0,2615.2,2614.0,3.82546134]
[1750052043496,3.11502982,2615.1,2613.8,0.018312]
[1750052043709,1.15029818,2615.3,2613.8,0.018312]
[1750052043710,30.0,2615.2,2613.8,0.018312]
[1750052044033,1.15029818,2615.3,2613.8,0.018312]
[1750052044034,10.0,2614.8,2613.8,0.018312]
[1750052044233,41.023,2614.7,2613.8,0.018312]
[1750052044440,0.7816,2614.6,2613.8,0.018312]
[1750052044641,1.18046,2614.5,2613.8,0.018312]
[1750052044822,0.7816,2614.6,2613.8,3.88237609]
[1750052045156,0.7816,2614.6,2613.8,0.05656529]
[1750052045442,0.7816,2614.6,2613.8,0.018312]
[1750052046841,40.0,2614.2,2613.8,0.018312]
[1750052047148,0.8012,2614.0,2613.8,0.018312]
[1750052048568,15.46674139,2613.9,2613.8,0.018312]
[1750052048777,40.55,2613.8,2612.1,4.63297989]
[1750052048910,6.01674139,2613.5,2611.7,0.8026]
[1750052049109,30.0,2613.3,2611.7,0.8026]
[1750052049363,11.028,2613.4,2611.4,3.8292598]
[1750052049364,30.809,2613.0,2611.4,3.8292598]
[1750052049671,0.809,2613.0,2611.3,0.8026]
[1750052049844,0.809,2613.0,2611.3,1.12228085]
[1750052050042,1.1861922,2613.0,2611.3,1.12228085]
[1750052050367,0.8206,2612.6,2611.3,0.31968085]
[1750052050529,30.0,2612.4,2611.3,0.31968085]
[1750052051059,0.8206,2612.6,2611.4,0.03829155]
[1750052051257,0.8206,2612.6,2611.3,0.31968085]
[1750052051664,0.8206,2612.6,2611.6,3.82895542]
[1750052051861,0.8206,2612.6,2611.3,0.31968085]
[1750052052624,0.8206,2612.6,2611.3,4.14913545]
[1750052053122,10.8206,2612.6,2611.3,0.31968085]
[1750052053346,10.8646,2612.6,2611.4,0.0382914]
[1750052053652,0.8206,2612.6,2611.4,0.0382914]
[1750052053854,0.8206,2612.6,2611.4,3.86761744]
[1750052054045,1.08596,2612.5,2611.5,3.82921508]
[1750052054215,0.8206,2612.6,2611.6,3.86724286]
[1750052054420,0.8206,2612.6,2611.7,3.82883691]
[1750052054650,0.8206,2612.6,2611.8,0.03828323]
[1750052054853,0.8206,2612.6,2611.4,0.03828324]
[1750052055057,0.8206,2612.6,2611.8,3.82865296]
[1750052055217,0.8206,2612.6,2611.3,1.10778085]
[1750052055218,0.8206,2612.6,2611.9,0.03828112]
[1750052055416,0.8206,2612.6,2611.9,3.86680653]
[1750052055661,0.8206,2612.6,2612.0,3.82839645]
[1750052055958,0.8206,2612.6,2612.1,3.86654633]
[1750052056255,0.8243,2613.1,2612.2,0.038276]
[1750052056464,0.8243,2613.1,2611.6,5.46674139]
[1750052056644,0.8243,2613.1,2612.4,3.82781775]
[1750052056960,0.8008,2613.5,2612.5,3.82762742]
[1750052057166,0.8008,2613.5,2612.3,3.82798012]
[1750052057351,0.8008,2613.5,2611.7,10.7172]
[1750052057663,30.0,2613.4,2611.7,7.20747422]
[1750052057850,30.0,2613.2,2611.7,0.7602]
[1750052058050,0.8008,2613.1,2611.3,0.7602]
[1750052058250,6.26754139,2613.1,2611.3,0.7602]
[1750052058420,6.26754139,2613.1,2611.3,4.58970475]
[1750052058625,6.48024548,2613.1,2611.5,3.82912229]
[1750052058923,0.1912,2612.5,2612.0,0.1912]
[1750052059119,11.56902455,2613.0,2611.6,0.03828406]
[1750052059319,0.1912,2612.9,2612.4,0.1912]
[1750052060038,0.1912,2612.9,2612.5,0.1912]
[1750052060235,0.1912,2612.9,2611.4,3.82924432]
[1750052060451,30.8025,2612.8,2611.0,3.82989734]
[1750052060662,10.0,2612.6,2610.4,5.46674139]
[1750052060969,11.035,2612.5,2611.2,4.04716524]
[1750052061128,11.035,2612.5,2611.3,3.86766149]
[1750052061467,11.035,2612.5,2611.5,3.82911316]
[1750052061618,11.035,2612.5,2611.6,3.86732448]
[1750052061825,11.035,2612.5,2611.7,3.82886437]
[1750052062050,11.035,2612.5,2611.8,0.03828289]
[1750052062959,11.035,2612.5,2611.8,0.42499537]
[1750052063259,11.035,2612.5,2612.2,3.82815221]
[1750052063461,0.8025,2612.8,2612.2,3.82815221]
[1750052063623,0.8025,2612.8,2612.3,0.03827602]
[1750052063822,0.8025,2612.8,2611.6,3.82899642]
[1750052064139,0.35643251,2612.7,2611.8,3.82877708]
[1750052064354,0.35643996,2612.6,2611.9,0.03828336]
[1750052064561,0.35643471,2612.5,2611.4,3.8292976]
[1750052064758,0.8025,2612.8,2611.2,0.2176418]
[1750052065071,1.43670745,2612.7,2611.3,5.50502434]
[1750052065277,0.8025,2612.8,2611.3,0.03828295]
[1750052065567,1.01637548,2612.8,2611.4,3.82936355]
[1750052065870,0.35644359,2612.7,2611.6,3.82899183]
[1750052066173,0.8025,2612.8,2611.7,0.03828394]
[1750052066558,0.35644851,2612.7,2611.7,0.03828394]
[1750052066729,0.8025,2612.8,2611.8,3.82875148]
[1750052067070,0.8025,2612.8,2611.9,3.86688683]
[1750052067279,0.8025,2612.8,2612.0,3.82848392]
[1750052067481,0.8025,2612.8,2611.9,0.03827601]
[1750052067682,0.8025,2612.8,2611.2,0.2176418]
[1750052067867,10.5345,2612.8,2611.3,3.82949358]
[1750052068026,11.05345,2612.7,2611.2,0.2176418]
[1750052068223,11.05345,2612.7,2611.5,3.8290918]
[1750052068224,11.037,2612.6,2611.5,3.8290918]
[1750052068541,11.25086661,2612.6,2611.7,3.82890997]
[1750052068864,11.25086661,2612.6,2611.6,0.038287]
[1750052068865,0.35645381,2612.5,2611.6,3.82896791]
[1750052069030,15.23286711,2612.6,2611.7,0.03828188]
[1750052069224,17.72788171,2612.6,2611.7,0.03828188]
[1750052069458,17.72788171,2612.6,2611.6,3.82898731]
[1750052069887,17.72788171,2612.6,2611.4,3.82930519]
[1750052070081,17.72788171,2612.6,2611.3,3.82946015]
[1750052070228,0.21387977,2612.5,2611.3,3.82946015]
[1750052070432,0.1912,2612.3,2611.8,0.1912]
[1750052070633,3.982,2612.2,2611.8,0.1912]
[1750052070845,0.1912,2612.3,2611.8,0.1912]
[1750052071051,3.982,2612.3,2611.7,0.0382836]
[1750052071347,4.1732,2612.3,2611.8,0.1912]
[1750052072045,4.61190838,2612.3,2611.8,0.1912]
[1750052072395,4.61190838,2612.3,2611.2,0.2176418]
[1750052072396,4.79632654,2612.3,2611.2,0.2176418]
[1750052072596,4.1732,2612.2,2611.7,0.1912]
[1750052072764,0.8082,2612.1,2611.7,0.1912]
[1750052073683,0.8082,2612.1,2611.2,0.2176418]
[1750052073866,1.38759631,2612.1,2611.2,0.2176418]
[1750052074185,1.38759631,2612.1,2611.2,0.4088418]
[1750052074186,0.1912,2611.7,2611.2,0.4088418]
[1750052074672,0.8082,2612.1,2611.6,0.1912]
[1750052074880,0.7539,2612.5,2611.7,4.75743243]
[1750052075081,0.7539,2612.5,2612.1,0.1912]
[1750052075981,0.7539,2612.5,2611.9,3.86680593]
[1750052075982,0.7539,2612.5,2611.9,0.0382819]
[1750052076167,0.7539,2612.5,2612.4,0.1912]
[1750052077100,0.7586,2613.1,2612.4,0.1912]
[1750052078099,0.7586,2613.1,2611.9,0.03828025]
[1750052078100,1.07586,2613.0,2611.9,0.03828025]
[1750052078269,1.07586,2613.0,2612.0,0.89269985]
[1750052078469,1.07586,2613.0,2611.9,0.03828025]
[1750052078675,1.07586,2613.0,2612.0,0.89277595]
[1750052078868,3.887,2612.9,2612.1,0.93105491]
[1750052079061,3.887,2612.9,2612.1,0.03827896]
[1750052079389,3.887,2612.9,2612.2,0.89350318]
[1750052079568,3.887,2612.9,2611.9,1.11511822]
[1750052079768,4.35156,2612.9,2612.0,0.89346141]
[1750052080102,4.6456,2613.1,2612.1,0.9317386]
[1750052080401,4.6456,2613.1,2612.2,0.89346141]
[1750052080603,4.6456,2613.1,2612.3,0.93173636]
[1750052080912,0.8172,2613.6,2612.4,0.89346141]
[1750052081105,3.792,2613.3,2612.5,5.87451042]
[1750052081333,3.792,2613.3,2612.6,0.89346141]
[1750052081482,3.792,2613.3,2612.7,0.93173008]
[1750052081680,3.792,2613.3,2612.8,0.89346141]
[1750052081879,3.792,2613.3,2612.7,0.03826867]
[1750052082092,3.792,2613.3,2612.8,0.89256351]
[1750052082277,3.792,2613.3,2612.4,4.94290977]
[1750052082481,3.791,2613.4,2612.5,4.720267]
[1750052082681,3.791,2613.4,2612.4,2.21414557]
[1750052082682,3.791,2613.4,2612.6,4.7201713]
[1750052082905,3.791,2613.4,2612.7,0.93087144]
[1750052083110,3.791,2613.4,2612.8,0.8926057]
[1750052083325,3.791,2613.4,2612.5,1.11511822]
[1750052083486,3.791,2613.4,2611.8,0.8237]
[1750052083487,0.7945,2613.1,2611.9,1.11511822]
[1750052083673,0.7945,2613.1,2612.0,0.93116658]
[1750052083868,0.7945,2613.1,2612.1,0.89292819]
[1750052084075,0.7945,2613.1,2612.2,0.89292819]
[1750052084290,0.7945,2613.1,2612.3,0.89292819]
[1750052084483,0.7945,2613.1,2612.4,0.89292819]
[1750052084684,0.7945,2613.1,2612.1,1.11511822]
[1750052084907,0.7945,2613.1,2612.2,0.89243094]
[1750052085121,0.7945,2613.1,2612.3,0.89243094]
[1750052085343,0.7945,2613.1,2612.0,4.94353016]
[1750052085563,0.7945,2613.1,2612.3,3.82791569]
[1750052085840,4.5855,2613.1,2612.4,0.89260059]
[1750052085992,4.5855,2613.1,2612.1,3.82826607]
[1750052086197,4.5855,2613.1,2612.2,4.72060555]
[1750052086536,4.5855,2613.1,2612.3,0.89244499]
[1750052086907,4.5855,2613.1,2612.3,4.72047469]
[1750052087138,4.5855,2613.1,2612.7,0.1912]
[1750052090610,0.35815182,2613.0,2612.7,0.1912]
[1750052090870,0.35815189,2612.9,2612.7,0.1912]
[1750052091061,0.35815972,2612.8,2612.7,0.1912]
[1750052091256,0.35816004,2613.0,2612.7,0.1912]
[1750052091565,0.1912,2612.9,2612.4,0.1912]